Cogmind - Beta 10.2 @@@ ROGUE MODE // 2021.10.26 @ 00:11:33 Player: xgamer Result: Destroyed by G-34 Mercenary with Small Laser Performance ------------- Evolutions (1) 500 Regions Visited (2) 400 Robots Destroyed (21) 105 Value Destroyed (615) 615 Prototype IDs (1) 20 Alien Tech Used (0) 0 Bonus (0) 0 TOTAL SCORE: 1640 Bonus ------- None Cogmind --------- Core Integrity 0/400 Matter 300/300 Energy 99/100 System Corruption 3% Temperature Cool (27) Movement Core (300) Ox5 Location -9/Materials Parts ------- > --- POWER (1) -------- (None) > --- PROPULSION (2) --- (None) > --- UTILITY (3) ------ Large Storage Unit Signal Interpreter > --- WEAPON (3) ------- (None) > --- INVENTORY (10) --- Light Ion Engine Wheel Compact Wheel Large Storage Unit High-capacity Storage Unit Heavy EM Pulse Gun Grenade Launcher Peak State ------------ > --- POWER ------------ Light Ion Engine > --- PROPULSION ------- Wheel Wheel > --- UTILITY ---------- Large Storage Unit Signal Interpreter Light Armor Plating > --- WEAPON ----------- EM Pulse Gun Improved EM Shotgun Datajack > --- INVENTORY -------- Light Ion Engine Wheel Compact Wheel Large Storage Unit High-capacity Storage Unit EM Pulse Gun EM Pulse Gun Heavy EM Pulse Gun Assault Rifle Grenade Launcher [Rating: 12] Favorites ----------- Power Ion Engine Engine Ion Engine Propulsion Wheel Leg Aluminum Leg Wheel Wheel Utility Small Storage Unit Storage Small Storage Unit Processor Signal Interpreter Protection Light Armor Plating Weapon EM Pulse Gun Energy Gun EM Pulse Gun Ballistic Gun Assault Rifle Special Melee Weapon Datajack Build | -11 -10 -9 ------- Run | Scr Mat Mat Slots Evolved 2 | . . 2 Power . | . . . Propulsion . | . . . Utility 1 | . . 1 Weapon 1 | . . 1 Parts Attached 16 | 1 9 6 Power 2 | . 2 . Engine 2 | . 2 . Core . | . . . Reactor . | . . . Propulsion 3 | . 3 . Treads . | . . . Leg . | . . . Wheel 3 | . 3 . Hover . | . . . Flight . | . . . Utility 4 | 1 2 1 Device . | . . . Storage 2 | 1 1 . Processor 1 | . 1 . Hackware . | . . . Protection 1 | . . 1 Artifact . | . . . Weapon 7 | . 2 5 Energy Gun 4 | . 1 3 Energy Cannon . | . . . Ballistic Gun 1 | . . 1 Ballistic Cannon . | . . . Launcher . | . . . Special Weapon . | . . . Impact Weapon . | . . . Slashing Weapon . | . . . Piercing Weapon . | . . . Special Melee Weapon 2 | . 1 1 Unidentified Prototypes 1 | . . 1 Parts Lost 11 | . 2 9 Power 2 | . 1 1 Propulsion 3 | . 1 2 Utility 1 | . . 1 Weapon 5 | . . 5 Highest Loss Streak 8 | . 1 8 Average Slot Usage (%) 94 | . 98 84 Engine 11 | . 12 7 Leg 7 | . 10 . Wheel 18 | . 17 20 Storage 18 | . 21 11 Processor 7 | . 6 11 Protection 2 | . . 8 Energy Gun 20 | . 21 17 Special Melee Weapon 5 | . 6 4 Naked Turns . | . . . Heaviest Build 29 | 15 28 29 Greatest Support 20 | 20 20 20 Greatest Overweight (x) 5 | . 1 5 Average Overweight (x) . | . . . Largest Inventory Capacity 12 | 8 12 10 Average Capacity 9 | 6 9 10 Most Carried 10 | 8 10 10 Average Carried 8 | 6 8 7 Final Capacity 10 | 8 10 10 Final Carried 10 | 8 10 7 Class Distribution -------------------- 91% | Mutant 8% | Tank Dominant Class ---------------- Mutant | -10/Materials Mutant | -9/Materials Resources | -11 -10 -9 ----------- Run | Scr Mat Mat Matter Collected 368 | 210 80 78 Remotely . | . . . Salvage Created 853 | 75 542 236 Parts 40 | 3 24 13 Haulers Intercepted . | . . . Recyclers Shooed . | . . . Parts Field Recycled . | . . . Retrieved Matter . | . . . Parts Self-Destructed . | . . . Prevented . | . . . Kills | -11 -10 -9 ------- Run | Scr Mat Mat Combat Hostiles Destroyed 18 | . 11 7 Guns 17 | . 10 7 AOE 1 | . 1 . Classes Destroyed 5 | 1 2 2 Recycler 1 | 1 . . Watcher 2 | . 2 . Swarmer 4 | . . 4 Grunt 12 | . 11 1 Sentry 2 | . . 2 Best Kill Streak 4 | 1 2 4 Combat Bots Only 4 | . 2 4 Max Kills in Single Turn 1 | 1 1 1 Gunslinging . | . . . Exploded 1 | . 1 . Melee . | . . . Uniques/NPCs Destroyed . | . . . Combat | -11 -10 -9 -------- Run | Scr Mat Mat Damage Taken 1361 | . 309 1052 Core 427 | . 16 411 Absorbed by Shields . | . . . Core Remaining (%) 96 | 100 93 . Volleys Fired 50 | 1 25 24 Largest 3 | 2 2 3 Hottest 125 | 80 80 125 Shots Fired 99 | 2 37 60 Gun 99 | 2 37 60 Cannon . | . . . Launcher . | . . . Special . | . . . Kinetic 12 | . . 12 Thermal . | . . . Explosive . | . . . Electromagnetic 87 | 2 37 48 Robot Hit Streak 11 | 2 11 9 Robot Miss Streak 9 | . 3 9 Penetration Max . | . . . Secondary Targets . | . . . Shots Hit Robots 63 | 2 28 33 Core Hits 32 | 2 19 11 Critical Hits . | . . . Critical Kills . | . . . Critical Parts Destroyed . | . . . Melee Attacks 3 | . 3 . Impact . | . . . Slashing . | . . . Piercing . | . . . Sneak Attacks . | . . . Combat Hostiles . | . . . Follow-up Attacks . | . . . Damage Inflicted 898 | 27 444 427 Guns 780 | 27 378 375 Cannons . | . . . Explosions 102 | . 66 36 Melee . | . . . Ramming 16 | . . 16 Kinetic . | . . . Thermal 102 | . 66 36 Explosive . | . . . Electromagnetic 780 | 27 378 375 Impact . | . . . Slashing . | . . . Piercing . | . . . Highest Corruption 3 | . . 3 Average Corruption 3 | . . 3 Corruption Purged . | . . . Overload Shots . | . . . Overflow Damage 34 | . 12 22 Projectiles . | . . . Explosions 34 | . 12 22 Melee . | . . . Knockbacks . | . . . Impact . | . . . Kinetic . | . . . Secondary . | . . . Self-Inflicted Damage 60 | . 53 7 Shots 1 | . 1 . Rammed 3 | . . 3 Targets Rammed 3 | . . 3 Kicked . | . . . Crushed . | . . . Highest Temperature 360 | 18 78 360 Average Temperature 95 | 12 25 133 Received Heat Transfer 552 | . 144 408 Effects 2 | . . 2 Energy Bleed 1 | . . 1 Short Circuit 1 | . . 1 Siege Activations . | . . . Robots Corrupted . | . . . Combat Hostiles . | . . . Parts Fried 7 | . 1 6 Impact Corruptions . | . . . Robots Melted . | . . . Combat Hostiles . | . . . Parts Melted . | . . . Heat Transferred 100 | . 50 50 Parts Sabotaged . | . . . Parts Stolen . | . . . Parts Stripped . | . . . Power Chain Reactions 2 | . 1 1 Missiles Intercepted . | . . . Alert | -11 -10 -9 ------- Run | Scr Mat Mat Peak Influence 295 | 5 280 295 Initial 3 | . 3 . Average 136 | 3 144 130 Maximum Alert Level 1 | . 1 1 Low Security (%) 66 | 100 67 62 Level 1 33 | . 32 37 Level 2 . | . . . Level 3 . | . . . Level 4 . | . . . Level 5 . | . . . High Security . | . . . Max Security . | . . . Squads Dispatched 4 | . 3 1 Investigation 1 | . 1 . Extermination . | . . . Reinforcement 3 | . 2 1 Assault . | . . . Garrison . | . . . Intercept . | . . . Construction Impeded . | . . . Haulers Reinforced . | . . . Stealth | -11 -10 -9 --------- Run | Scr Mat Mat Distress Signals 1 | . . 1 Communications Jammed . | . . . Distress Signals . | . . . Times Spotted 46 | . 22 24 Peak Tracking Total 10 | . 4 10 Tactical Retreats 5 | . 2 3 Traps | -11 -10 -9 ------- Run | Scr Mat Mat Traps Triggered 1 | . 1 . Indirectly . | . . . Trap Hack Attempts . | . . . Triggered . | . . . Disarmed 6 | . 6 . Reprogrammed . | . . . Reused . | . . . Traps Extracted . | . . . Installed . | . . . Triggered . | . . . Machines | -11 -10 -9 ---------- Run | Scr Mat Mat Machines Disabled . | . . . Max in Single Turn . | . . . Machines Sabotaged . | . . . Garrisons Compromised . | . . . Overloaded Fab Kills . | . . . Fab Network Shutdowns . | . . . Hacking | -11 -10 -9 --------- Run | Scr Mat Mat Machines Accessed 6 | . 5 1 Terminals 4 | . 3 1 Fabricators . | . . . Repair Stations . | . . . Recycling Units 2 | . 2 . Scanalyzers . | . . . Garrison Access . | . . . Total Hacks 18 | . 15 3 Successful 12 | . 11 1 Failed 6 | . 4 2 Catastrophic 1 | . 1 . Database Lockouts . | . . . Manual 3 | . 3 . Terminals 14 | . 11 3 Fabricators . | . . . Repair Stations . | . . . Recycling Units 4 | . 4 . Scanalyzers . | . . . Garrison Access . | . . . Terminal Hacks 9 | . 8 1 Terminal Index 2 | . 1 1 Alert Level 1 | . 1 . Unreport Threat 2 | . 2 . Disarm Traps 1 | . 1 . Investigation Status 1 | . 1 . Recall Investigation 1 | . 1 . Zone Layout 1 | . 1 . Fabricator Hacks . | . . . Repair Station Hacks . | . . . Recycling Unit Hacks 3 | . 3 . Process 1 | . 1 . Report Inventory 2 | . 2 . Scanalyzer . | . . . Garrison Access Hacks . | . . . Unauthorized Hacks . | . . . Terminals . | . . . Fabricators . | . . . Repair Stations . | . . . Recycling Units . | . . . Scanalyzers . | . . . Garrison Access . | . . . Data Cores Recovered . | . . . Used . | . . . Hacking Detections 5 | . 4 1 Full Trace Events 1 | . 1 . Feedback Events . | . . . Feedback Blocked . | . . . Robot Schematics Acquired . | . . . Robots Built . | . . . Matter . | . . . Time . | . . . Total Robot Build Rating . | . . . Part Schematics Acquired . | . . . Parts Built . | . . . Matter . | . . . Time . | . . . Total Part Build Rating . | . . . Parts Repaired . | . . . Time . | . . . Parts Recycled . | . . . Recycled Matter 101 | . 101 . Retrieved Matter . | . . . Retrieved Components . | . . . Parts Scanalyzed . | . . . Part Schematics Acquired . | . . . Parts Damaged . | . . . Bothacking | -11 -10 -9 ------------ Run | Scr Mat Mat Used RIF Installer . | . . . Robots Hacked 3 | . 3 . Non-combat . | . . . Combat 3 | . 3 . Robot Hacks Applied 3 | . 3 . parse_system 3 | . 3 . Relay Couplers Released . | . . . Robots Rewired . | . . . Allies Hacked . | . . . Hacks Repelled . | . . . Allies | -11 -10 -9 -------- Run | Scr Mat Mat Total Allies . | . . . Largest Group . | . . . Highest-Rated Group . | . . . Highest-Rated Ally . | . . . Total Orders . | . . . Ally Attacks . | . . . Total Damage . | . . . Kills . | . . . Allies Corrupted . | . . . Allies Melted . | . . . Intel | -11 -10 -9 ------- Run | Scr Mat Mat Robot Analysis Total . | . . . Derelict Logs Recovered . | . . . Drone Launches . | . . . Drone Recoveries . | . . . Exploration | -11 -10 -9 ------------- Run | Scr Mat Mat Turns Passed 1155 | 25 775 355 Spaces Moved 809 | 16 571 222 Core 5 | . . 5 Treads . | . . . Legs 185 | 16 169 . Wheels 619 | . 402 217 Hover . | . . . Flight . | . . . Fastest Speed 80 | 120 80 80 Average Speed 96 | 120 97 93 Slowest Speed 300 | 120 120 300 Overloaded Moves . | . . . Propulsion Burnouts . | . . . Robots Hopped . | . . . Cave-ins Triggered . | . . . Exploration Rate (%) 32 | 3 79 14 Regions Visited 2 Branch Regions . Pre-discovered Areas . | . . . Known Exits Taken 1 | . 1 . Unknown Exits Taken 1 | 1 . . Scrap Searched . | . . . Spaces Dug . | . . . Terrain Destroyed 7 | . 3 4 Melee . | . . . Projectile . | . . . AOE 7 | . 3 4 Terrain Rammed . | . . . Walls Destroyed . | . . . Machines Disabled . | . . . Actions | -11 -10 -9 --------- Run | Scr Mat Mat Total 1091 | 19 756 316 Wait 179 | . 122 57 Move 807 | 15 570 222 Hop . | . . . Pick Up 16 | 2 13 1 Fast Attach 4 | 1 2 1 Attach 9 | . 4 5 Detach 4 | . 2 2 Swap 3 | . 3 . Drop 13 | . 12 1 Fire 50 | 1 25 24 Melee 3 | . 3 . Ram 3 | . . 3 Kick . | . . . Crush . | . . . Escape Stasis . | . . . Rewire . | . . . Trap . | . . . Miscellaneous . | . . . Route ------- -11/Scrapyard -10/Materials (discovered 4 exits: *Mat x2 / [*Min x2]) -9/Materials History --------- Turn | Location | Event 1 | -11/Scrapyard | Discovered new exit (range 3) 26 | -11/Scrapyard | Entered Materials 43 | -10/Materials | Discovered new exit (range 16) 90 | -10/Materials | Discovered new exit (range 13) 205 | -10/Materials | Discovered new exit (range 14) 306 | -10/Materials | Build established: Mutant 584 | -10/Materials | Discovered new exit (range 4) 587 | -10/Materials | Identified exit to Materials 801 | -10/Materials | Entered another Materials area 801 | -9/Materials | Evolved 2 slots: Utility x1, Weapon x1 1138 | -9/Materials | Core integrity fell below 50% 1153 | -9/Materials | Core integrity fell below 20% 1156 | -9/Materials | Destroyed by G-34 Mercenary with Small Laser Last Messages --------------- 01031_ S-10 Pest destroyed. 01031_ Door malfunctions. 01045_ Hvy. EM Pulse Gun permanently disabled. 01045_ Overheating: Short circuit. 01051_ Flight Unit fried. 01051_ S-10 Pest destroyed. 01052_ Lgt. Ion Engine destroyed. 01054_ S-10 Pest destroyed. 01055_ Acquired 13 matter. 01056_ Overheating: Energy bleed (-7). 01076_ Acquired 20 matter. 01079_ Imp. EM Shotgun destroyed. 01082_ Lgt. Armor Plating destroyed. 01110_ Wheel destroyed. 01115_ Assault Rifle destroyed. 01135_ Slammed into T-07 Excavator. 01135_ Wheel destroyed. 01135_ System corrupted by crushing effect (+3). 01150_ Slammed into G-34 Mercenary. 01153_ Slammed into K-01 Serf. Map ----- +----------------------------------------------------+ | ?????????????????????????????????????????????????? | | ?????????????????????????????????????????????????? | | ?????????????????????????????????????????????????? | | ?????????????????????????????????????????????????? | | ?????????????????????????????????????????????????? | | ?????????????????????????????????????????????????? | | ?????????????????????????????????????????????????? | | ?????????????????????????????????????????????????? | | ?????????????????????????????????????????????????? | | ?????????????????????????????????????????????????? | | ?????????????????????????????????????????????????? | | ?????????????????????????????????????????????????? | | ?????????????????????????????????????????????????? | | ?????????????????????????????????????????????????? | | ?????????????????????????????????????????????????? | | ?????????????????????????????????????????????????? | | ????????????????????????######???????????????????? | | ???????????????????????? k ???????????????????? | | ???????????????????????? ????????????????????? | | ???????????????????????? k????????????????????? | | ????????????????????????# #????????????????????? | | ????????????????????????# #????????????????????? | | ????????????????????????# #????????????????????? | | ??????????????????####??# w #????????????????????? | | ????????????????? ?# g #????????????????????? | | ???????????????? """?#@ #????????????????????? | | ???????????????# """ # %g#????????????????????? | | ???????????????# """ #k #????????????????????? | | ???????????????# /gg #????????????????????? | | ???????????????# #g g#????????????????????? | | ???????????????# !!! ## ##????????????????????? | | ???????????????# !!! ??# #?????????????????????? | | ???????????????# !! ??#%#?????????????????????? | | ???????????????#######???# #?????????????????????? | | ?????????????????????????# #???#######???????????? | | ???????????????????????### ###? !/= #???????????? | | ???????????????????????# # /==#????????????? | | ???????????????######### # /==#????????????? | | ???????? % TY + #????????????? | | ???????????????#########% # #????????????? | | ???????????????????????# Y #[ #????????????? | | ???????????????????????## ##?######????????????? | | ????????????????#######?# #????????????????????? | | ????????????????# ! #?# #????????????????????? | | ????????????????# #?# #????????????????????? | | ????????????????# """ ### ###??????????????????? | | ????????????????# """ # #??????????????????? | | ????????????????# """ #= #??????????????????? | | ????????????????# #[ #??????????????????? | | ????????????????# """%+%= T #??????????????????? | +----------------------------------------------------+ Best States ------------- Heat Dissipation 28 Energy Generation 10 Energy Capacity 250 Matter Stores 300 Matter Capacity 300 Sight Range 16 Terrain Scan Density 10 Armor Coverage 150 Evasion (%) 44 Item Schematics ----------------- None Robot Schematics ------------------ None Fabricated ------------ Nothing Alien Tech Used ----------------- None Achievements -------------- GoHome() Challenges ------------ None Game ------ Seed FocalPotentialCorpse Manual? 0 Play Time 00:22:42 Cumulative 15.2 hours Start 2021.10.25 @ 23:49:00 End 2021.10.26 @ 00:11:33 Sessions 1 Manual Loads 0 Difficulty Rogue Special Mode None Game No. 11 Rogue 11 Adventurer 0 Explorer 0 Win Type - Total 0 Types 0/0/0/0/0/0/0/0/0 Lore% 9 Gallery% 19 Achievement% 17 Wizard Run 0 Options --------- ASCII 0 Keyboard 1 Movement Numpad Keybinds 0 Fullscreen 2 Font 36/Smallcaps Map View 76x50 Tactical HUD 1 Map Filters NONE Filters NONE Steam 1 RUN: 6275c357-259d-4af0-89eb-fb3dc41e004e